fUSD/lending_fUSD_20250503
["ID","MTS","AMOUNT","RATE_DAILY","PERIOD"]
[359745656,1746294644871,-450.0,0.00019884,2]
[359745657,1746294644880,-450.0,0.00019885,2]
[359745658,1746294644889,-450.0,0.00019885,2]
[359745659,1746294644899,-608.23,0.00019885,2]
[359745660,1746294644909,-450.0,0.00019885,2]
[359745661,1746294644918,-450.0,0.00019885,2]
[359745662,1746294644927,-450.0,0.00019885,2]
[359745663,1746294644936,-450.0,0.00019885,2]
[359745664,1746294644946,-450.0,0.00019885,2]
[359745665,1746294644955,-450.0,0.00019885,2]
[359745666,1746294644964,-450.0,0.00019885,2]
[359745667,1746294644974,-450.0,0.00019885,2]
[359745668,1746294644983,-450.0,0.00019885,2]
[359745669,1746294644993,-450.0,0.00019885,2]
[359745670,1746294645003,-647.07,0.00019885,2]
[359745671,1746294645012,-890.1,0.00019885,2]
[359745672,1746294645022,-482.9,0.00019885,2]
[359745673,1746294645032,-497.67,0.00019885,2]
[359745674,1746294645041,-450.0,0.00019885,2]
[359745675,1746294645051,-450.0,0.00019885,2]
[359745676,1746294645061,-450.0,0.00019885,2]
[359745677,1746294645071,-450.0,0.00019885,2]
[359745678,1746294645081,-450.0,0.00019885,2]
[359745679,1746294645090,-450.0,0.00019885,2]
[359745680,1746294645099,-450.0,0.00019885,2]
[359745681,1746294645109,-450.0,0.00019885,2]
[359745682,1746294645119,-450.0,0.00019885,2]
[359745683,1746294645128,-450.0,0.00019885,2]
[359745684,1746294645138,-450.0,0.00019885,2]
[359745685,1746294645147,-450.0,0.00019885,2]
[359745686,1746294645157,-450.0,0.00019885,2]
[359745687,1746294645167,-450.0,0.00019885,2]
[359745688,1746294645177,-523.86464297,0.00019885,2]
[359745689,1746294645187,-450.0,0.00019885,2]
[359745690,1746294645198,-450.0,0.00019885,2]
[359745691,1746294645208,-450.0,0.00019885,2]
[359745692,1746294645217,-450.0,0.00019885,2]
[359745693,1746294645228,-363.74633765,0.00019885,2]
[359745694,1746294645238,-450.0,0.00019885,2]
[359745695,1746294645248,-597.62,0.00019885,2]
[359745696,1746294645257,-214.80461143,0.00019885,2]
[359745697,1746294645267,-1330.69,0.00019885,2]
[359745699,1746294645276,-450.0,0.00019885,2]
[359745700,1746294645285,-450.0,0.00019885,2]
[359745701,1746294645295,-450.0,0.00019885,2]
[359745702,1746294645305,-450.0,0.00019885,2]
[359745703,1746294645314,-450.0,0.00019885,2]
[359745704,1746294645324,-450.0,0.00019885,2]
[359745705,1746294645333,-3660.05,0.00019885,2]
[359745706,1746294645343,-450.0,0.00019885,2]
[359745707,1746294645352,-475.65,0.00019885,2]
[359745708,1746294645362,-450.0,0.00019885,2]
[359745709,1746294645371,-958.55,0.00019885,2]
[359745710,1746294645380,-511.88,0.00019885,2]
[359745711,1746294645390,-450.0,0.00019885,2]
[359745712,1746294645399,-450.0,0.00019885,2]
[359745713,1746294645408,-487.62,0.00019885,2]
[359745714,1746294645418,-2158.71,0.00019885,2]
[359745715,1746294645427,-1828.02,0.00019885,2]
[359745716,1746294645437,-450.0,0.00019885,2]
[359745717,1746294645448,-450.0,0.00019885,2]
[359745718,1746294645458,-1060.64,0.00019885,2]
[359745719,1746294645468,-450.0,0.00019885,2]
[359745720,1746294645478,-450.0,0.00019885,2]
[359745721,1746294645489,-679.22,0.00019885,2]
[359745722,1746294645501,-450.0,0.00019885,2]
[359745723,1746294645511,-450.0,0.00019885,2]
[359745724,1746294645521,-500.0,0.00019885,2]
[359745725,1746294645530,-500.0,0.00019885,2]
[359745726,1746294645542,-450.0,0.00019885,2]
[359745727,1746294645552,-804.88,0.00019885,2]
[359745728,1746294645563,-450.0,0.00019885,2]
[359745729,1746294645574,-655.76,0.00019885,2]
[359745730,1746294645585,-479.06,0.00019885,2]
[359745731,1746294645596,-772.19,0.00019885,2]
[359745732,1746294645607,-450.0,0.00019885,2]
[359745733,1746294645617,-450.0,0.00019885,2]
[359745734,1746294645626,-849.36,0.00019885,2]
[359745735,1746294645636,-450.0,0.00019885,2]
[359745736,1746294645646,-1677.02,0.00019885,2]
[359745737,1746294645655,-621.54,0.00019885,2]
[359745738,1746294645666,-1151.2,0.00019885,2]
[359745739,1746294645675,-2738.45,0.00019885,2]
[359745740,1746294645685,-999.0,0.00019885,2]
[359745741,1746294645696,-450.0,0.00019885,2]
[359745742,1746294645706,-680.47,0.00019885,2]
[359745743,1746294645715,-450.0,0.00019885,2]
[359745744,1746294645725,-450.0,0.00019885,2]
[359745745,1746294645734,-450.0,0.00019885,2]
[359745746,1746294645744,-541.9,0.00019885,2]
[359745747,1746294645753,-6682.83,0.00019885,2]
[359745748,1746294645763,-450.0,0.00019885,2]
[359745749,1746294645772,-450.0,0.00019885,2]
[359745750,1746294645784,-580.26,0.00019885,2]
[359745751,1746294645794,-2635.09,0.00019885,2]
[359745752,1746294645804,-450.0,0.00019885,2]
[359745753,1746294645813,-4363.49,0.00019885,2]
[359745754,1746294645823,-552.33,0.00019885,2]
[359745755,1746294645833,-755.59,0.00019885,2]
[359745756,1746294645842,-1039.54,0.00019885,2]
[359745757,1746294645852,-644.59,0.00019885,2]
[359745758,1746294645861,-509.82,0.00019885,2]
[359745759,1746294645871,-450.0,0.00019885,2]
[359745760,1746294645881,-553.78,0.00019885,2]
[359745761,1746294645891,-450.0,0.00019885,2]
[359745762,1746294645901,-450.0,0.00019885,2]
[359745763,1746294645911,-530.41,0.00019885,2]
[359745764,1746294645921,-4753.46,0.00019885,2]
[359745765,1746294645931,-1240.97,0.00019885,2]
[359745766,1746294645941,-929.36,0.00019885,2]
[359745767,1746294645951,-96986.69,0.00019885,2]
[359745768,1746294645961,-450.0,0.00019885,2]
[359745769,1746294645971,-522.59847802,0.00019885,2]
[359745770,1746294645980,-450.0,0.00019885,2]
[359745771,1746294645990,-542.6,0.00019885,2]
[359745772,1746294645999,-831.37,0.00019885,2]
[359745773,1746294646011,-4325.79,0.00019885,2]
[359745774,1746294646020,-1011.12,0.00019885,2]
[359745775,1746294646030,-450.0,0.00019885,2]
[359745776,1746294646040,-363.22128551,0.00019885,2]
[359745777,1746294646049,-20514.36,0.00019885,2]
[359745778,1746294646059,-450.0,0.00019885,2]
[359745779,1746294646069,-450.0,0.00019885,2]
[359745780,1746294646079,-450.0,0.00019885,2]
[359745781,1746294646088,-450.0,0.00019885,2]
[359745782,1746294646098,-1666.22,0.00019885,2]
[359745783,1746294646107,-450.0,0.00019885,2]
[359745784,1746294646117,-450.0,0.00019885,2]
[359745785,1746294646126,-12946.0,0.00019885,2]
[359745786,1746294646135,-450.0,0.00019885,2]
[359745787,1746294646145,-450.0,0.00019885,2]
[359745788,1746294646154,-450.0,0.00019885,2]
[359745789,1746294646164,-450.0,0.00019885,2]
[359745790,1746294646173,-97505.73,0.00019885,2]
[359745791,1746294646183,-450.0,0.00019885,2]
[359745792,1746294646192,-554.93,0.00019885,2]
[359745793,1746294646202,-450.0,0.00019885,2]
[359745794,1746294646212,-500.36,0.00019885,2]
[359745795,1746294646221,-1330.69,0.00019885,2]
[359745796,1746294646231,-450.0,0.00019885,2]
[359745797,1746294646240,-450.0,0.00019885,2]
[359745798,1746294646249,-707.04,0.00019885,2]
[359745799,1746294646258,-450.0,0.00019885,2]
[359745800,1746294646268,-450.0,0.00019885,2]
[359745801,1746294646277,-450.0,0.00019885,2]
[359745802,1746294646286,-450.0,0.00019885,2]
[359745803,1746294646296,-551.02,0.00019885,2]
[359745804,1746294646306,-450.0,0.00019885,2]
[359745805,1746294646315,-3878.53,0.00019885,2]
[359745806,1746294646325,-450.0,0.00019885,2]
[359745807,1746294646334,-450.0,0.00019885,2]
[359745808,1746294646343,-450.0,0.00019885,2]
[359745809,1746294646353,-466.82,0.00019885,2]
[359745810,1746294646363,-450.0,0.00019885,2]
[359745811,1746294646372,-552.89,0.00019885,2]
[359745812,1746294646382,-866.11,0.00019885,2]
[359745813,1746294646391,-981.75,0.00019885,2]
[359745814,1746294646401,-516.41503227,0.00019885,2]
[359745815,1746294646410,-474.31,0.00019885,2]
[359745816,1746294646420,-450.0,0.00019885,2]
[359745817,1746294646429,-450.0,0.00019885,2]
[359745818,1746294646441,-488.59,0.00019885,2]
[359745819,1746294646450,-511.86,0.00019885,2]
[359745820,1746294646459,-498.13,0.00019885,2]
[359745821,1746294646469,-2630.49,0.00019886,2]
[359745822,1746294646479,-450.0,0.00019886,2]
[359745823,1746294646488,-489.88,0.00019886,2]
[359745824,1746294646498,-450.0,0.00019886,2]
[359745825,1746294646507,-543.43,0.00019886,2]
[359745826,1746294646517,-562.46,0.00019886,2]
[359745827,1746294646527,-222.06695475,0.00019886,2]
[359745828,1746294646536,-450.0,0.00019886,2]
[359745829,1746294646546,-450.0,0.00019886,2]
[359745830,1746294646556,-450.0,0.00019886,2]
[359745831,1746294646565,-450.0,0.00019886,2]
[359745832,1746294646577,-745.86,0.00019886,2]
[359745833,1746294646589,-450.0,0.00019886,2]
[359745834,1746294646599,-450.0,0.00019886,2]
[359745835,1746294646609,-536.71,0.00019886,2]
[359745836,1746294646618,-450.0,0.00019886,2]
[359745837,1746294646629,-450.0,0.00019886,2]
[359745838,1746294646638,-450.0,0.00019886,2]
[359745839,1746294646647,-450.0,0.00019886,2]
[359745840,1746294646659,-578.99426522,0.00019886,2]
[359745841,1746294646669,-450.0,0.00019886,2]
[359745842,1746294646679,-450.0,0.00019886,2]
[359745843,1746294646690,-450.0,0.00019886,2]
[359745844,1746294646699,-450.0,0.00019886,2]
[359745845,1746294646709,-450.0,0.00019886,2]
[359745846,1746294646719,-493.93,0.00019886,2]
[359745847,1746294646731,-450.0,0.00019886,2]
[359745848,1746294646741,-450.0,0.00019886,2]
[359745849,1746294646750,-450.0,0.00019886,2]
[359745850,1746294646760,-965.32,0.00019886,2]
[359745851,1746294646769,-450.0,0.00019886,2]
[359745852,1746294646779,-938.97,0.00019886,2]
[359745853,1746294646789,-450.0,0.00019886,2]
[359745854,1746294646799,-450.0,0.00019886,2]
[359745855,1746294646808,-450.0,0.00019886,2]
[359745856,1746294646817,-450.0,0.00019886,2]
[359745857,1746294646827,-618.3,0.00019886,2]
[359745858,1746294646836,-450.0,0.00019886,2]
[359745859,1746294646848,-450.0,0.00019886,2]
[359745860,1746294646859,-450.0,0.00019886,2]
[359745861,1746294646869,-450.0,0.00019886,2]
[359745862,1746294646879,-450.0,0.00019886,2]
[359745863,1746294646888,-644.11,0.00019886,2]
[359745864,1746294646898,-450.0,0.00019886,2]
[359745865,1746294646907,-450.0,0.00019886,2]
[359745866,1746294646917,-450.0,0.00019886,2]
[359745867,1746294646927,-486.68,0.00019886,2]
[359745868,1746294646937,-450.0,0.00019886,2]
[359745869,1746294646947,-527.59,0.00019886,2]
[359745870,1746294646956,-450.0,0.00019886,2]
[359745871,1746294646966,-450.0,0.00019886,2]
[359745872,1746294646976,-450.0,0.00019886,2]
[359745873,1746294646986,-551.68,0.00019886,2]
[359745874,1746294646995,-452.75,0.00019886,2]
[359745875,1746294647005,-450.0,0.00019886,2]
[359745876,1746294647015,-450.0,0.00019886,2]
[359745877,1746294647024,-1517.71,0.00019886,2]
[359745878,1746294647034,-450.0,0.00019886,2]
[359745879,1746294647043,-527.6,0.00019886,2]
[359745880,1746294647053,-450.0,0.00019886,2]
[359745881,1746294647062,-450.0,0.00019886,2]
[359745882,1746294647072,-450.0,0.00019886,2]
[359745883,1746294647145,-611.7,0.00019886,2]
[359745884,1746294647155,-450.0,0.00019886,2]
[359745885,1746294647164,-450.0,0.00019886,2]
[359745886,1746294647174,-450.0,0.00019886,2]
[359745887,1746294647184,-180.47388055,0.00019886,2]
[359745888,1746294647193,-450.0,0.00019886,2]
[359745889,1746294647203,-450.0,0.00019886,2]
[359745890,1746294647212,-450.0,0.00019886,2]
[359745891,1746294647221,-450.0,0.00019886,2]
[359745892,1746294647231,-599.03,0.00019886,2]
[359745893,1746294647240,-450.0,0.00019886,2]
[359745894,1746294647250,-619.94,0.00019886,2]
[359745895,1746294647259,-789.42,0.00019886,2]
[359745896,1746294647269,-450.0,0.00019886,2]
[359745897,1746294647278,-450.0,0.00019886,2]
[359745898,1746294647288,-486.57628982,0.00019886,2]
[359745899,1746294647297,-751.46,0.00019886,2]
[359745900,1746294647306,-710.59,0.00019886,2]
[359745901,1746294647315,-450.0,0.00019886,2]
[359745902,1746294647324,-450.0,0.00019886,2]
[359745903,1746294647333,-450.0,0.00019886,2]
[359745904,1746294647343,-766.09,0.00019886,2]
[359745905,1746294647352,-528.05,0.00019886,2]
[359745906,1746294647361,-1015.91,0.00019886,2]
[359745907,1746294647370,-450.0,0.00019886,2]
[359745908,1746294647379,-506.76,0.00019886,2]
[359745909,1746294647388,-450.0,0.00019886,2]
[359745910,1746294647397,-1197.95,0.00019886,2]
[359745911,1746294647406,-450.0,0.00019886,2]
[359745912,1746294647414,-1010.84,0.00019886,2]
[359745913,1746294647423,-697.54,0.00019886,2]
[359745914,1746294647433,-450.0,0.00019886,2]
[359745915,1746294647442,-515.97,0.00019886,2]
[359745916,1746294647451,-450.0,0.00019886,2]
[359745917,1746294647460,-1362.47,0.00019886,2]
[359745918,1746294647469,-450.0,0.00019886,2]
[359745919,1746294647480,-558.83,0.00019886,2]
[359745920,1746294647489,-450.0,0.00019886,2]
[359745921,1746294647498,-584.14,0.00019886,2]
[359745922,1746294647509,-817.55,0.00019886,2]
[359745923,1746294647519,-450.0,0.00019886,2]
[359745924,1746294647529,-220.16788687,0.00019886,2]
[359745925,1746294647538,-647.39,0.00019886,2]
[359745926,1746294647548,-496.27,0.00019886,2]
[359745927,1746294647557,-472.18731909,0.00019886,2]
[359745928,1746294647567,-450.0,0.00019886,2]
[359745929,1746294647579,-450.0,0.00019886,2]
[359745930,1746294647588,-450.0,0.00019886,2]
[359745931,1746294647598,-450.0,0.00019886,2]
[359745932,1746294647607,-450.0,0.00019886,2]
[359745933,1746294647616,-450.0,0.00019886,2]
[359745934,1746294647625,-450.0,0.00019886,2]
[359745935,1746294647635,-450.0,0.00019886,2]
[359745936,1746294647644,-286.45126402,0.00019886,2]
[359745937,1746294647653,-450.0,0.00019886,2]
[359745938,1746294647663,-578.15,0.00019886,2]
[359745939,1746294647672,-555.03,0.00019886,2]
[359745940,1746294647681,-2323.97,0.00019886,2]
[359745941,1746294647690,-450.0,0.00019886,2]
[359745942,1746294647700,-450.0,0.00019886,2]
[359745943,1746294647709,-450.0,0.00019886,2]
[359745944,1746294647718,-2160.7,0.00019886,2]
[359745945,1746294647727,-450.0,0.00019886,2]
[359745946,1746294647737,-512.74,0.00019886,2]
[359745947,1746294647746,-941.19,0.00019886,2]
[359745948,1746294647755,-450.0,0.00019886,2]
[359745949,1746294647765,-450.0,0.00019886,2]
[359745950,1746294647774,-450.0,0.00019886,2]
[359745951,1746294647783,-1102.1,0.00019886,2]
[359745952,1746294647793,-797.1,0.00019886,2]
[359745953,1746294647802,-2076.58,0.00019886,2]
[359745954,1746294647811,-450.0,0.00019886,2]
[359745955,1746294647821,-450.0,0.00019886,2]
[359745956,1746294647830,-450.0,0.00019886,2]
[359745957,1746294647839,-661.15,0.00019886,2]
[359745958,1746294647848,-468.42063572,0.00019886,2]
[359745959,1746294647857,-565.46,0.00019886,2]
[359745960,1746294647867,-1164.13,0.00019886,2]
[359745961,1746294647877,-450.0,0.00019886,2]
[359745962,1746294647886,-450.0,0.00019886,2]
[359745963,1746294647895,-450.0,0.00019886,2]
[359745964,1746294647904,-450.0,0.00019886,2]
[359745965,1746294647914,-450.0,0.00019886,2]
[359745966,1746294647923,-450.0,0.00019886,2]
[359745967,1746294647933,-450.0,0.00019886,2]
[359745968,1746294647943,-612.74,0.00019886,2]
[359745969,1746294647952,-450.0,0.00019886,2]
[359745970,1746294647962,-503.37,0.00019886,2]
[359745971,1746294647971,-250.0,0.00019886,2]
[359745972,1746294647981,-547.49,0.00019886,2]
[359745973,1746294647990,-450.0,0.00019886,2]
[359745974,1746294648000,-450.0,0.00019886,2]
[359745975,1746294648010,-450.0,0.00019886,2]
[359745976,1746294648020,-519.79,0.00019886,2]
[359745977,1746294648029,-450.0,0.00019886,2]
[359745978,1746294648039,-451.73,0.00019886,2]
[359745979,1746294648049,-500.0,0.00019886,2]
[359745980,1746294648058,-153.14775644,0.0001989,2]
[359745981,1746294648068,-150.0,0.0001989,2]
[359745982,1746294648078,-500.0,0.0001989,2]
[359745983,1746294648087,-150.0,0.0001989,2]
[359745984,1746294648096,-150.50631763,0.0001989,2]
[359745985,1746294648106,-150.0,0.0001989,2]
[359745986,1746294648115,-460.0,0.0001989,2]
[359745987,1746294648125,-150.0,0.0001989,2]
[359745988,1746294648134,-500.0,0.0001989,2]
[359745989,1746294648144,-150.0,0.0001989,2]
[359745990,1746294648153,-150.0,0.0001989,2]
[359745991,1746294648162,-500.0,0.0001989,2]
[359745992,1746294648172,-155.75221986,0.0001989,2]
[359745993,1746294648181,-150.0,0.0001989,2]
[359745994,1746294648191,-500.0,0.0001989,2]
[359745995,1746294648200,-152.6145878,0.0001989,2]
[359745996,1746294648209,-152.14871149,0.0001989,2]
[359745997,1746294648218,-500.0,0.0001989,2]
[359745998,1746294648228,-150.0,0.0001989,2]
[359745999,1746294648238,-150.0,0.0001989,2]
[359746000,1746294648247,-150.0,0.0001989,2]
[359746001,1746294648256,-1418.2818,0.000199,2]
[359746002,1746294648265,-225.0,0.000199,2]
[359746003,1746294648275,-5264.87563912,0.000199,2]
[359746004,1746294648284,-321.62556741,0.000199,2]
[359746005,1746294648293,-319.06743515,0.000199,2]
[359746006,1746294648302,-163.5375944,0.000199,2]
[359746007,1746294648311,-321.46227653,0.000199,2]
[359746008,1746294648321,-4060.93939236,0.000199,2]
[359746009,1746294648330,-1340.0,0.000199,2]
[359746010,1746294648339,-166.66,0.00019902,2]
[359746011,1746294648348,-5873.99554819,0.00019917,2]
[359746012,1746294648357,-168.088,0.00019925,2]
[359746013,1746294648366,-2805.386,0.00019925,2]
[359746014,1746294648376,-4648.0,0.00019973,2]
[359746015,1746294648385,-500.0,0.00019973,2]
[359746016,1746294648396,-500.0,0.00019973,2]
[359746017,1746294648406,-500.0,0.00019973,2]
[359746018,1746294648415,-503.64954939,0.00019973,2]
[359746019,1746294648425,-500.0,0.00019973,2]
[359746020,1746294648434,-300.0,0.00019973,2]
[359746021,1746294648444,-150.0,0.00019973,2]
[359746022,1746294648454,-67612.0740416,0.00019979,2]
[359746023,1746294648464,-500.0,0.00019985,2]
[359746024,1746294648474,-157824.5646798,0.00019986,2]
[359746025,1746294648483,-13079.5599179,0.00019986,2]
[359746026,1746294648493,-3481.9180559,0.00019986,2]
[359746027,1746294648502,-181.01435582,0.0001999,2]
[359746028,1746294648511,-181.01435582,0.0001999,2]
[359746029,1746294648521,-618.16575253,0.00019999,2]
[359746030,1746294648530,-500.0,0.00019999,2]
[359746031,1746294648540,-162.27960963,0.00019999,2]
[359746032,1746294648550,-194.20076903,0.00019999,2]
[359746033,1746294648559,-150.0,0.00019999,2]
[359746034,1746294648568,-150.0,0.00019999,2]
[359746035,1746294648581,-300.0,0.00019999,2]
[359746036,1746294648591,-2443.62,0.00019999,2]
[359746037,1746294648601,-500.0,0.00019999,2]
[359746038,1746294648611,-500.0,0.00019999,2]
[359746039,1746294648622,-666.0,0.00019999,2]
[359746040,1746294648630,-500.0,0.00019999,2]
[359746041,1746294648639,-366.20032378,0.00019999,2]
[359746042,1746294648649,-300.0,0.00019999,2]
[359746043,1746294648659,-359.92,0.00019999,2]
[359746044,1746294648669,-500.0,0.00019999,2]
[359746045,1746294648678,-500.0,0.00019999,2]
[359746046,1746294648687,-500.0,0.00019999,2]
[359746047,1746294648696,-500.0,0.00019999,2]
[359746048,1746294648705,-212.03805716,0.00019999,2]
[359746049,1746294648713,-521.49175367,0.0002,2]
[359746050,1746294648723,-321643.64350373,0.0002,2]
[359746051,1746294648733,-529330.59589516,0.0002,2]
[359746052,1746294649080,-195154.95752185,0.0002,2]
[359746053,1746294649092,-741765.5863488,0.0002,2]
[359746054,1746294649102,-1261.0,0.0002,2]
[359746055,1746294649112,-347614.62866024,0.0002,2]
[359746056,1746294649145,-450.0,0.0001961,2]
[359746057,1746294649154,-984.04625,0.0002,2]
[359746058,1746294649460,-406159.51090467,0.0002,2]
[359746059,1746294649486,-364.8952943,0.0002,2]
[359746060,1746294649508,-18784.73490558,0.0002,2]
[359746061,1746294649976,-147368.02924066,0.0002,2]
[359746062,1746294649988,-197180.23123752,0.0002,2]
[359746063,1746294650000,-59941.443,0.0002,2]
[359746064,1746294650011,-45707.421,0.0002,2]
[359746065,1746294650023,-27657.16378,0.0002,2]
[359746066,1746294650034,-22096.52072,0.0002,2]
[359746067,1746294650046,-3036.24757769,0.0002,2]
[359746068,1746294650061,-13759.78255142,0.0002,2]
[359746069,1746294650073,-6652.23789614,0.0002,2]
[359746070,1746294652422,-110698.13653381,0.0002,2]
[359746071,1746294652433,-4620.16175024,0.0002,2]
[359746072,1746294652444,-63267.40620345,0.0002,2]
[359746073,1746294743111,790.815156,0.00019414,2]
[359746074,1746294800460,250.0,0.00018887,2]
[359746075,1746294850083,848.78,0.00016909,2]
[359746076,1746294850298,848.78,0.00019173,2]
[359746081,1746295311128,150.0,0.00018709,2]
[359746082,1746295329518,10000.0,0.00032876,60]
[359746083,1746295382969,-186.6999334,0.00019508,2]
[359746084,1746295388427,10000.0,0.00032876,60]
[359746085,1746295444452,-152.0,0.00019509,2]
[359746086,1746295448169,-48.0,0.00019509,2]
[359746087,1746295502428,-163.12182954,0.00019508,2]
[359746088,1746295502449,-14.55833406,0.00019508,2]
[359746089,1746295508941,338.699934,0.0001941,2]
[359746090,1746295521485,225.680163,0.0001941,2]
[359746093,1746295686138,155.94,0.00018696,2]
[359746094,1746295771369,21960.12,0.00018681,2]
[359746095,1746295823105,166.66,0.00019269,2]
[359746099,1746295832125,-163.1218295,0.00019508,2]
[359746100,1746295832135,-236.39080436,0.00019508,2]
[359746102,1746295832146,-63.60919564,0.00019508,2]
[359746104,1746295832156,-1200.0,0.00019508,2]
[359746105,1746295832165,-235.605961,0.00019508,2]
[359746106,1746295832176,-488.86610413,0.00019508,2]
[359746107,1746295832187,-594.9507418,0.00019508,2]
[359746108,1746295837726,-5890.69481546,0.00019508,2]
[359746109,1746295837735,-200.0,0.00019508,2]
[359746110,1746295837745,-200.0,0.00019509,2]
[359746111,1746295837754,-250.0,0.00019509,2]
[359746112,1746295837764,-500.0,0.00019509,2]
[359746113,1746295837773,-164.45301229,0.00019509,2]
[359746114,1746295837783,-4348.0431,0.0001951,2]
[359746115,1746295837792,-6307.72501645,0.00019552,2]
[359746116,1746295837804,-902.39260586,0.00019552,2]
[359746117,1746295837813,-164.45301224,0.00019587,2]
[359746118,1746295837822,-207.4,0.00019587,2]
[359746119,1746295837832,-2324.8543819,0.00019588,2]
[359746120,1746295837843,-7058.79633906,0.00019588,2]
[359746121,1746295837854,-1467.40062353,0.00019588,2]
[359746122,1746295837873,-1040.19337642,0.00019588,2]
[359746123,1746295837884,-12302.38593855,0.00019588,2]
[359746124,1746295837895,-7210.11762231,0.00019595,2]
[359746125,1746295837904,-151.0,0.00019597,2]
[359746126,1746295837914,-151.0,0.00019597,2]
[359746127,1746295837923,-668.65185757,0.00019597,2]
[359746128,1746295837932,-9999.99,0.00019598,2]
[359746129,1746295837942,-1219.12,0.00019598,2]
[359746130,1746295837951,-150.99,0.00019598,2]
[359746131,1746295837959,-435.18,0.00019598,2]
[359746132,1746295837969,-150.99,0.00019598,2]
[359746133,1746295837980,-3261.8,0.00019598,2]
[359746134,1746295838205,-6953.78,0.00019598,2]
[359746135,1746295838215,-9999.99,0.00019598,2]
[359746136,1746295838224,-999.99,0.00019598,2]
[359746137,1746295838234,-4209.35,0.00019598,2]
[359746138,1746295838244,-337.50505337,0.00019599,2]
[359746139,1746295838253,-9999.99,0.00019599,2]
[359746141,1746295838263,-2846.8,0.00019599,2]
[359746142,1746295838274,-9161.25,0.00019599,2]
[359746144,1746295838283,-1000.0,0.000196,2]
[359746145,1746295838293,-323.24746342,0.00019607,2]
[359746146,1746295838303,-450.0,0.00019607,2]
[359746147,1746295838312,-450.0,0.00019607,2]
[359746148,1746295838322,-376.58923022,0.00019607,2]
[359746149,1746295838331,-450.0,0.00019607,2]
[359746150,1746295838340,-450.0,0.00019607,2]
[359746151,1746295838349,-450.0,0.00019607,2]
[359746152,1746295838359,-450.0,0.00019607,2]
[359746153,1746295838368,-450.0,0.00019607,2]
[359746154,1746295838377,-515.62,0.00019607,2]
[359746155,1746295838387,-450.0,0.00019607,2]
[359746156,1746295838395,-450.0,0.00019607,2]
[359746157,1746295838405,-3638.46,0.00019607,2]
[359746158,1746295838414,-450.0,0.00019607,2]
[359746159,1746295838424,-450.0,0.00019607,2]
[359746160,1746295838433,-757.86,0.00019607,2]
[359746161,1746295838442,-450.0,0.00019607,2]
[359746162,1746295838451,-450.0,0.00019607,2]
[359746163,1746295838462,-450.0,0.00019607,2]
[359746164,1746295838473,-450.0,0.00019607,2]
[359746165,1746295838482,-450.0,0.00019607,2]
[359746166,1746295838492,-500.0,0.00019607,2]
[359746167,1746295838501,-1703.96,0.00019607,2]
[359746168,1746295838510,-450.0,0.00019607,2]
[359746169,1746295838519,-500.0,0.00019607,2]